fUST/lending_fUST_20240501
["ID","MTS","AMOUNT","RATE_DAILY","PERIOD"]
[324982586,1714493438024,-928.69749977,0.00014,2]
[324982587,1714493438034,-24900.0,0.0001476,2]
[324982588,1714493438043,-2807.5535999,0.00014998,2]
[324982589,1714493438053,-2101.40475036,0.00015,2]
[324982590,1714493438062,-312.92952009,0.00015182,2]
[324982591,1714493438071,-166.666666,0.00015183,2]
[324982592,1714493438081,-270.906492,0.00015203,2]
[324982594,1714493438090,-514.30635662,0.00016,2]
[324982595,1714493438101,-9378.0153671,0.00016,2]
[324982596,1714493438111,-300.0,0.00016231,2]
[324982597,1714493438119,-272.83575254,0.000165,2]
[324982598,1714493438129,-59218.78804834,0.00018246,2]
[324982599,1714493438138,-603.84859883,0.000185,2]
[324982600,1714493438147,-185.7,0.0001899,3]
[324982601,1714493438157,-534.03330881,0.00019,2]
[324982602,1714493438167,-2462.57015947,0.00019078,2]
[324982603,1714493438176,-451.12120339,0.00019178,2]
[324982604,1714493438185,-304.165153,0.00019178,2]
[324982605,1714493438195,-500.0,0.00019178,2]
[324982606,1714493438204,-444.15041247,0.00019178,2]
[324982607,1714493438214,-436.5103315,0.00019178,4]
[324982608,1714493438223,-160.585066,0.00019178,2]
[324982609,1714493438233,-638.74,0.00019766,2]
[324982610,1714493438242,-235.25766933,0.00019898,2]
[324982611,1714493438251,-228.97102988,0.000199,2]
[324982612,1714493438260,-6846.28939896,0.00019978,2]
[324982613,1714493438269,-161.1878028,0.00019998,2]
[324982614,1714493438278,-2453.40430644,0.00019998,2]
[324982615,1714493438288,-2300.74627684,0.0002,5]
[324982616,1714493438297,-241.02816563,0.0002,2]
[324982617,1714493438306,-165.41143922,0.0002,2]
[324982618,1714493438316,-525.07533493,0.0002,4]
[324982619,1714493438325,-300.07781609,0.0002,2]
[324982620,1714493438336,-241.71320654,0.0002,2]
[324982621,1714493438347,-222.7847691,0.0002,2]
[324982622,1714493438356,-67426.19859378,0.0002,2]
[324982623,1714493438366,-329.99389325,0.0002,2]
[324982624,1714493438376,-154.81422293,0.0002,2]
[324982625,1714493438387,-10481.54893926,0.0002,2]
[324982626,1714493438397,-20844.2223323,0.0002,2]
[324982627,1714493438407,-9683.60426596,0.0002,2]
[324982628,1714493438416,-258.1276112,0.0002,2]
[324982629,1714493438426,-28125.42010534,0.0002,2]
[324982630,1714493438436,-200.0,0.0002,2]
[324982631,1714493438445,-371.4,0.0002036,3]
[324982632,1714493438454,-2131.84784114,0.00020912,2]
[324982633,1714493438464,-310.37125039,0.00020912,2]
[324982634,1714493438473,-939.47409396,0.00020912,2]
[324982635,1714493438483,-212.0994584,0.00020912,2]
[324982636,1714493438492,-155.01143089,0.00020912,2]
[324982637,1714493438502,-189.3964787,0.00020912,2]
[324982638,1714493438511,-206.09782636,0.00020912,2]
[324982639,1714493438521,-993.67010569,0.00020912,2]
[324982640,1714493438530,-362.81317571,0.00020912,2]
[324982641,1714493438540,-977.94969331,0.00020912,2]
[324982642,1714493438549,-154.9286876,0.00020912,2]
[324982643,1714493438558,-154.84515485,0.00020913,2]
[324982644,1714493438567,-1677.34524306,0.00020913,2]
[324982645,1714493438577,-2394.86118815,0.00020913,2]
[324982646,1714493438587,-4308.84815292,0.00020913,2]
[324982647,1714493438598,-3387.72625463,0.00021,2]
[324982648,1714493438607,-3000.0,0.00021917,2]
[324982649,1714493438617,-3000.0,0.00021917,2]
[324982650,1714493438627,-3000.0,0.00021917,2]
[324982651,1714493438636,-3000.0,0.00021917,2]
[324982652,1714493438646,-3000.0,0.00021917,2]
[324982653,1714493438655,-5272.2077733,0.00021918,2]
[324982654,1714493438669,-246.63,0.00021918,2]
[324982655,1714493438679,-385.07,0.00021918,2]
[324982656,1714493438689,-320.89,0.00021918,2]
[324982657,1714493438699,-267.41,0.00021918,2]
[324982658,1714493438710,-222.84,0.00021918,2]
[324982659,1714493438720,-557.15,0.00021918,2]
[324982660,1714493438730,-166.666666,0.00021918,2]
[324982661,1714493438739,-305.6041892,0.00022,2]
[324982662,1714493438751,-368.23456064,0.000223,2]
[324982663,1714493438761,-166.666666,0.00022431,2]
[324982664,1714493438770,-182.419473,0.00022466,2]
[324982665,1714493438780,-310.617983,0.00022466,2]
[324982666,1714493438789,-270.906492,0.00022805,2]
[324982667,1714493438799,-235.25766933,0.00022844,2]
[324982668,1714493438809,-166.666666,0.00022944,2]
[324982669,1714493438818,-1370.77204514,0.00023,2]
[324982670,1714493438827,-989.91268434,0.00023,2]
[324982671,1714493438837,-166.666666,0.00023456,2]
[324982672,1714493438848,-166.666666,0.00023969,2]
[324982673,1714493438862,-693.45686249,0.00024,2]
[324982674,1714493438871,-166.666666,0.00024482,2]
[324982675,1714493438880,-500.0,0.00024657,2]
[324982676,1714493438889,-380.0,0.00024658,2]
[324982677,1714493438899,-200.0,0.00024658,15]
[324982678,1714493438908,-154.81422293,0.00025,2]
[324982679,1714493438917,-189.39573714,0.00025,2]
[324982680,1714493438927,-154.81422293,0.00025,2]
[324982681,1714493438936,-154.81422293,0.00025,2]
[324982682,1714493438946,-1836.20001103,0.00025,2]
[324982683,1714493438956,-1016.69173145,0.00025,2]
[324982684,1714493438965,-150.0,0.00025434,2]
[324982685,1714493438974,-417.0,0.00025434,2]
[324982686,1714493438984,-235.25766933,0.00025789,2]
[324982687,1714493438994,-620.00000076,0.00025966,2]
[324982688,1714493439003,-391.16491221,0.000266,2]
[324982689,1714493439013,-8529.21181525,0.00027,2]
[324982690,1714493439022,-4153.80495904,0.00027,15]
[324982691,1714493439032,-620.00000004,0.00027264,2]
[324982692,1714493439041,-367.4,0.00027458,3]
[324982693,1714493439051,-220.93587945,0.00028,2]
[324982694,1714493439060,-150.0,0.00028434,2]
[324982695,1714493439070,-417.0,0.00028434,2]
[324982696,1714493439079,-310.617983,0.00028493,2]
[324982697,1714493439089,-165.5465256,0.00028493,2]
[324982698,1714493439102,-367.4,0.00028544,5]
[324982699,1714493439110,-620.0,0.00028628,2]
[324982700,1714493439119,-235.25766933,0.00028735,2]
[324982701,1714493439128,-3649.89911807,0.0002877,2]
[324982702,1714493439138,-367.4,0.00029629,5]
[324982703,1714493439148,-1366.42880946,0.0002968,2]
[324982704,1714493439157,-250.0,0.000299,2]
[324982705,1714493439166,-250.0,0.000299,2]
[324982706,1714493439176,-250.0,0.000299,2]
[324982707,1714493439186,-250.0,0.000299,2]
[324982708,1714493439196,-1446.7501054,0.0003,4]
[324982709,1714493439212,-3871.18208501,0.0003,4]
[324982710,1714493439222,-154.81422293,0.0003,4]
[324982711,1714493439232,-3002.797284,0.0003,4]
[324982712,1714493439241,-375.0,0.0003,2]
[324982713,1714493439251,-620.0,0.00030059,2]
[324982714,1714493439261,-367.4,0.00030715,7]
[324982715,1714493439271,-157.73975448,0.00030772,7]
[324982716,1714493439280,-153.0,0.00030858,2]
[324982717,1714493439289,-153.0,0.00030858,2]
[324982718,1714493439299,-153.0,0.00030858,2]
[324982719,1714493439309,-153.0,0.00030858,2]
[324982720,1714493439318,-153.0,0.00030858,2]
[324982721,1714493439327,-153.0,0.00030858,2]
[324982722,1714493439336,-153.0,0.00030858,2]
[324982723,1714493439345,-153.0,0.00030858,2]
[324982724,1714493439358,-153.0,0.00030858,2]
[324982725,1714493439367,-153.0,0.00030858,2]
[324982726,1714493439377,-153.0,0.00030858,2]
[324982727,1714493439386,-153.0,0.00030858,2]
[324982728,1714493439396,-153.8921486,0.0003106,7]
[324982729,1714493439405,-153.8921486,0.00031072,7]
[324982730,1714493439415,-160.0,0.00031146,2]
[324982732,1714493439425,-160.0,0.00031146,2]
[324982733,1714493439435,-588.0,0.000312,2]
[324982734,1714493439445,-153.21482082,0.00031206,7]
[324982735,1714493439454,-382.39971932,0.0003128,7]
[324982736,1714493439463,-154.62751969,0.00031282,7]
[324982737,1714493439473,-154.62751969,0.00031294,7]
[324982738,1714493439482,-153.8921486,0.00031328,7]
[324982739,1714493439491,-154.62751969,0.00031364,7]
[324982740,1714493439501,-154.62751969,0.00031365,7]
[324982741,1714493439510,-417.0,0.00031434,2]
[324982742,1714493439519,-153.21482082,0.00031435,7]
[324982743,1714493439529,-152.95,0.00031602,120]
[324982744,1714493439538,-44444.0,0.0003168,3]
[324982745,1714493439548,-235.25766933,0.0003168,2]
[324982746,1714493439557,-153.0,0.0003168,2]
[324982747,1714493439566,-306.0,0.0003168,2]
[324982748,1714493439575,-151.48563567,0.00031716,2]
[324982749,1714493439585,-150.80395486,0.00031733,2]
[324982750,1714493439594,-1000.0,0.00031779,30]
[324982751,1714493439606,-1000.0,0.00031779,30]
[324982752,1714493439615,-1000.0,0.00031779,30]
[324982753,1714493439624,-1000.0,0.00031779,30]
[324982754,1714493439634,-1000.0,0.00031779,30]
[324982755,1714493439643,-2684.07607813,0.00031779,10]
[324982756,1714493439652,-9014.74074493,0.0003178,7]
[324982757,1714493439661,-500.0,0.0003178,2]
[324982758,1714493439669,-2101.68210532,0.0003178,2]
[324982759,1714493439682,-500.0,0.0003178,2]
[324982760,1714493439691,-191.54103763,0.0003178,4]
[324982761,1714493439700,-2000.0,0.0003178,2]
[324982762,1714493439711,-14239.91354927,0.0003178,7]
[324982763,1714493439720,-1743.15210263,0.0003178,4]
[324982764,1714493439729,-500.0,0.0003178,2]
[324982765,1714493439738,-500.0,0.0003178,2]
[324982766,1714493439747,-1551.22,0.0003178,2]
[324982767,1714493439759,-553.16,0.0003178,2]
[324982768,1714493439768,-500.0,0.0003178,2]
[324982769,1714493439777,-588.3938237,0.0003178,2]
[324982770,1714493439786,-831.64,0.0003178,2]
[324982771,1714493439795,-500.0,0.0003178,2]
[324982772,1714493439804,-500.0,0.0003178,2]
[324982773,1714493439814,-500.0,0.0003178,2]
[324982774,1714493439823,-500.0,0.0003178,2]
[324982775,1714493439832,-500.0,0.0003178,2]
[324982776,1714493439841,-977.05,0.0003178,2]
[324982777,1714493439853,-500.0,0.0003178,2]
[324982778,1714493439862,-500.0,0.0003178,2]
[324982779,1714493439871,-500.0,0.0003178,2]
[324982780,1714493439880,-500.0,0.0003178,2]
[324982781,1714493439890,-500.0,0.0003178,2]
[324982782,1714493439899,-500.0,0.0003178,2]
[324982783,1714493439909,-500.0,0.0003178,2]
[324982784,1714493439918,-584.71,0.0003178,2]
[324982785,1714493439927,-540.51,0.0003178,2]
[324982786,1714493439937,-500.0,0.0003178,2]
[324982787,1714493439947,-500.0,0.0003178,2]
[324982788,1714493439956,-500.0,0.0003178,2]
[324982789,1714493439966,-500.0,0.0003178,2]
[324982790,1714493439975,-500.0,0.0003178,2]
[324982791,1714493439985,-500.0,0.0003178,2]
[324982792,1714493439994,-500.0,0.0003178,2]
[324982793,1714493440004,-500.0,0.0003178,2]
[324982794,1714493440013,-500.0,0.0003178,2]
[324982795,1714493440023,-500.0,0.0003178,2]
[324982796,1714493440033,-500.0,0.0003178,2]
[324982797,1714493440043,-500.0,0.0003178,2]
[324982798,1714493440052,-500.0,0.0003178,2]
[324982799,1714493440061,-500.0,0.0003178,2]
[324982800,1714493440071,-500.0,0.0003178,2]
[324982801,1714493440080,-500.0,0.0003178,2]
[324982802,1714493440090,-500.0,0.0003178,2]
[324982803,1714493440100,-500.0,0.0003178,2]
[324982804,1714493440109,-500.0,0.0003178,2]
[324982805,1714493440119,-500.0,0.0003178,2]
[324982806,1714493440128,-500.0,0.0003178,2]
[324982807,1714493440138,-300.0,0.0003178,2]
[324982808,1714493440147,-500.0,0.0003178,2]
[324982809,1714493440156,-500.0,0.0003178,2]
[324982810,1714493440167,-500.0,0.0003178,2]
[324982811,1714493440176,-500.0,0.0003178,2]
[324982812,1714493440186,-500.0,0.0003178,2]
[324982813,1714493440195,-500.0,0.0003178,2]
[324982814,1714493440204,-500.0,0.0003178,2]
[324982815,1714493440214,-500.0,0.0003178,2]
[324982816,1714493440223,-500.0,0.0003178,2]
[324982817,1714493440232,-500.0,0.0003178,2]
[324982818,1714493440242,-500.0,0.0003178,2]
[324982819,1714493440251,-500.0,0.0003178,2]
[324982820,1714493440260,-500.0,0.0003178,2]
[324982821,1714493440270,-500.0,0.0003178,2]
[324982822,1714493440279,-500.0,0.0003178,2]
[324982823,1714493440288,-1514.2,0.0003178,2]
[324982824,1714493440297,-500.0,0.0003178,2]
[324982825,1714493440306,-360.43850052,0.0003178,2]
[324982826,1714493440315,-500.0,0.0003178,30]
[324982827,1714493440325,-500.0,0.0003178,2]
[324982828,1714493440334,-515.66609002,0.0003178,2]
[324982829,1714493440343,-500.0,0.0003178,2]
[324982830,1714493440354,-810.23,0.0003178,2]
[324982831,1714493440363,-500.0,0.0003178,2]
[324982832,1714493440373,-500.0,0.0003178,2]
[324982833,1714493440382,-500.0,0.0003178,2]
[324982834,1714493440391,-500.0,0.0003178,2]
[324982835,1714493440401,-500.0,0.0003178,2]
[324982836,1714493440410,-500.0,0.0003178,2]
[324982837,1714493440419,-723.15,0.0003178,2]
[324982838,1714493440428,-500.0,0.0003178,2]
[324982839,1714493440438,-500.0,0.0003178,2]
[324982840,1714493440447,-500.0,0.0003178,2]
[324982841,1714493440456,-500.0,0.0003178,2]
[324982842,1714493440466,-505.9943156,0.0003178,2]
[324982843,1714493440475,-500.0,0.0003178,2]
[324982844,1714493440484,-537.32,0.0003178,2]
[324982845,1714493440493,-500.0,0.0003178,2]
[324982846,1714493440502,-500.0,0.0003178,2]
[324982847,1714493440511,-500.0,0.0003178,2]
[324982848,1714493440520,-645.15,0.0003178,2]
[324982849,1714493440529,-500.0,0.0003178,2]
[324982850,1714493440539,-500.0,0.0003178,2]
[324982851,1714493440549,-500.0,0.0003178,2]
[324982852,1714493440558,-463.53196201,0.0003178,2]
[324982853,1714493440567,-500.0,0.0003178,2]
[324982854,1714493440576,-500.0,0.0003178,2]
[324982855,1714493440584,-500.0,0.0003178,2]
[324982856,1714493440593,-500.0,0.0003178,2]
[324982857,1714493440604,-500.0,0.0003178,2]
[324982858,1714493440613,-500.0,0.0003178,2]
[324982859,1714493440621,-500.89014114,0.0003178,2]
[324982860,1714493440630,-500.0,0.0003178,2]
[324982861,1714493440639,-500.0,0.0003178,2]
[324982862,1714493440648,-631.2,0.0003178,2]
[324982863,1714493440657,-300.0,0.0003178,2]
[324982864,1714493440671,-500.0,0.0003178,2]
[324982865,1714493440680,-631.28,0.0003178,2]
[324982866,1714493440690,-500.0,0.0003178,2]
[324982867,1714493440699,-500.0,0.0003178,2]
[324982868,1714493440709,-500.0,0.0003178,2]
[324982869,1714493440718,-672.86,0.0003178,2]
[324982870,1714493440727,-500.0,0.0003178,2]
[324982871,1714493440737,-274.15130659,0.0003178,2]
[324982872,1714493440746,-654.13,0.0003178,2]
[324982873,1714493440755,-500.0,0.0003178,2]
[324982874,1714493440765,-333.43535629,0.0003178,2]
[324982875,1714493440774,-500.0,0.0003178,2]
[324982876,1714493440783,-965.32,0.0003178,2]
[324982877,1714493440793,-500.0,0.0003178,2]
[324982878,1714493440802,-500.0,0.0003178,2]
[324982879,1714493440811,-269.44928437,0.0003178,2]
[324982880,1714493440820,-500.0,0.0003178,2]
[324982881,1714493440830,-769.26,0.0003178,2]
[324982882,1714493440839,-500.88093415,0.0003178,2]
[324982883,1714493440850,-500.0,0.0003178,2]
[324982884,1714493440858,-596.89857871,0.0003178,2]
[324982885,1714493440868,-304.2153024,0.0003178,2]
[324982886,1714493440877,-500.0,0.0003178,2]
[324982887,1714493440886,-500.0,0.0003178,2]
[324982888,1714493440895,-500.0,0.0003178,2]
[324982889,1714493440904,-500.0,0.0003178,2]
[324982890,1714493440913,-611.2,0.0003178,2]
[324982891,1714493440922,-500.0,0.0003178,2]
[324982892,1714493440931,-500.0,0.0003178,2]
[324982893,1714493440941,-500.0,0.0003178,2]
[324982894,1714493440950,-500.0,0.0003178,2]
[324982895,1714493440961,-500.0,0.0003178,2]
[324982896,1714493440970,-596.92,0.0003178,2]
[324982897,1714493440979,-500.0,0.0003178,2]
[324982898,1714493440988,-500.0,0.0003178,2]
[324982899,1714493440998,-500.0,0.0003178,2]
[324982900,1714493441007,-500.0,0.0003178,2]
[324982901,1714493441017,-500.0,0.0003178,2]
[324982902,1714493441026,-500.0,0.0003178,2]
[324982903,1714493441035,-500.0,0.0003178,2]
[324982904,1714493441045,-881.57,0.0003178,2]
[324982905,1714493441054,-500.0,0.0003178,2]
[324982906,1714493441063,-500.0,0.0003178,2]
[324982907,1714493441073,-500.0,0.0003178,2]
[324982908,1714493441082,-500.0,0.0003178,2]
[324982909,1714493441092,-827.93,0.0003178,2]
[324982910,1714493441102,-861.45,0.0003178,2]
[324982911,1714493441111,-500.0,0.0003178,2]
[324982912,1714493441121,-500.0,0.0003178,2]
[324982913,1714493441130,-500.0,0.0003178,2]
[324982914,1714493441139,-500.0,0.0003178,2]
[324982915,1714493441149,-500.0,0.0003178,2]
[324982916,1714493441158,-634.82,0.0003178,2]
[324982917,1714493441168,-500.0,0.0003178,2]
[324982918,1714493441176,-500.0,0.0003178,2]
[324982919,1714493441186,-1063.13,0.0003178,2]
[324982920,1714493441195,-500.0,0.0003178,2]
[324982921,1714493441204,-151.42629261,0.0003178,2]
[324982922,1714493441214,-588.46,0.0003178,2]
[324982923,1714493441223,-500.0,0.0003178,2]
[324982924,1714493441232,-500.0,0.0003178,2]
[324982925,1714493441241,-500.0,0.0003178,2]
[324982926,1714493441250,-500.0,0.0003178,2]
[324982927,1714493441260,-500.0,0.0003178,2]
[324982928,1714493441269,-500.0,0.0003178,2]
[324982929,1714493441278,-500.0,0.0003178,2]
[324982930,1714493441287,-500.0,0.0003178,2]
[324982931,1714493441297,-500.0,0.0003178,2]
[324982932,1714493441306,-500.0,0.0003178,2]
[324982933,1714493441315,-500.0,0.0003178,2]
[324982934,1714493441324,-500.0,0.0003178,2]
[324982935,1714493441334,-500.0,0.0003178,2]
[324982936,1714493441343,-500.0,0.0003178,2]
[324982937,1714493441487,-500.0,0.0003178,2]
[324982938,1714493441497,-500.0,0.0003178,2]
[324982939,1714493441507,-500.0,0.0003178,2]
[324982940,1714493441517,-500.0,0.0003178,2]
[324982941,1714493441526,-615.81,0.0003178,2]
[324982942,1714493441535,-500.0,0.0003178,2]
[324982943,1714493441545,-500.0,0.0003178,2]
[324982944,1714493441554,-535.66,0.0003178,2]
[324982945,1714493441564,-500.0,0.0003178,2]
[324982946,1714493441574,-500.0,0.0003178,2]
[324982947,1714493441583,-500.0,0.0003178,2]
[324982948,1714493441593,-500.0,0.0003178,2]
[324982949,1714493441605,-500.0,0.0003178,2]
[324982950,1714493441614,-500.27148347,0.0003178,2]
[324982951,1714493441623,-500.0,0.0003178,2]
[324982952,1714493441632,-500.0,0.0003178,2]
[324982953,1714493441642,-500.0,0.0003178,2]
[324982954,1714493441651,-500.0,0.0003178,2]
[324982955,1714493441661,-607.52,0.0003178,2]
[324982956,1714493441670,-500.0,0.0003178,2]
[324982957,1714493441682,-817.03,0.0003178,2]
[324982958,1714493441691,-708.04,0.0003178,2]
[324982959,1714493441700,-643.6,0.0003178,2]
[324982960,1714493441709,-500.0,0.0003178,2]
[324982961,1714493441719,-500.0,0.0003178,2]
[324982962,1714493441729,-500.0,0.0003178,2]
[324982963,1714493441738,-762.41,0.0003178,2]
[324982964,1714493441747,-500.0,0.0003178,2]
[324982966,1714493441758,-500.0,0.0003178,2]
[324982968,1714493441767,-1031.31,0.0003178,2]
[324982971,1714493441777,-500.0,0.0003178,2]
[324982972,1714493441787,-500.0,0.0003178,2]
[324982974,1714493441796,-500.0,0.0003178,2]
[324982976,1714493441805,-651.32,0.0003178,2]
[324982978,1714493441814,-500.0,0.0003178,2]
[324982980,1714493441823,-500.0,0.0003178,2]
[324982982,1714493441832,-500.0,0.0003178,2]
[324982984,1714493441842,-500.0,0.0003178,2]
[324982986,1714493441855,-944.0,0.0003178,2]
[324982988,1714493441864,-1147.95,0.0003178,2]
[324982991,1714493441874,-500.0,0.0003178,2]
[324982992,1714493441883,-3685.14,0.0003178,2]
[324982995,1714493441893,-712.09,0.0003178,2]
[324982997,1714493441904,-500.0,0.0003178,2]
[324982999,1714493441913,-500.0,0.0003178,2]
[324983001,1714493441923,-500.0,0.0003178,2]
[324983003,1714493441932,-900.39,0.0003178,2]
[324983005,1714493441942,-387.72935476,0.0003178,2]
[324983006,1714493441951,-500.0,0.0003178,2]
[324983008,1714493441961,-500.0,0.0003178,2]
[324983011,1714493441970,-500.0,0.0003178,2]
[324983012,1714493441979,-500.0,0.0003178,2]
[324983015,1714493441989,-870.88,0.0003178,2]
[324983017,1714493441998,-500.0,0.0003178,2]
[324983018,1714493442007,-500.0,0.0003178,2]
[324983020,1714493442017,-865.79,0.0003178,2]
[324983022,1714493442026,-500.0,0.0003178,2]
[324983024,1714493442035,-500.0,0.0003178,2]
[324983026,1714493442045,-508.33,0.0003178,2]
[324983028,1714493442054,-500.0,0.0003178,2]
[324983030,1714493442064,-500.0,0.0003178,2]
[324983032,1714493442074,-612.54,0.0003178,2]
[324983034,1714493442083,-612.04776119,0.0003178,2]
[324983036,1714493442092,-500.0,0.0003178,2]
[324983038,1714493442107,-500.0,0.0003178,2]
[324983040,1714493442117,-500.0,0.0003178,2]
[324983042,1714493442126,-500.0,0.0003178,2]
[324983044,1714493442136,-500.0,0.0003178,2]
[324983046,1714493442148,-500.0,0.0003178,2]
[324983048,1714493442157,-548.9,0.0003178,2]
[324983050,1714493442168,-500.0,0.0003178,2]
[324983052,1714493442178,-500.0,0.0003178,2]
[324983054,1714493442188,-500.0,0.0003178,2]
[324983056,1714493442197,-500.0,0.0003178,2]
[324983058,1714493442206,-3151.64,0.0003178,2]
[324983060,1714493442216,-515.25,0.0003178,2]
[324983062,1714493442225,-500.0,0.0003178,2]
[324983064,1714493442234,-500.0,0.0003178,2]
[324983066,1714493442244,-500.0,0.0003178,2]
[324983068,1714493442253,-500.0,0.0003178,2]
[324983070,1714493442262,-500.0,0.0003178,2]
[324983072,1714493442272,-765.94,0.0003178,2]
[324983074,1714493442282,-500.0,0.0003178,2]
[324983076,1714493442291,-500.0,0.0003178,2]
[324983078,1714493442300,-500.94514133,0.0003178,2]
[324983080,1714493442310,-500.0,0.0003178,2]
[324983082,1714493442319,-500.0,0.0003178,2]
[324983084,1714493442329,-500.0,0.0003178,2]
[324983086,1714493442338,-512.36,0.0003178,2]
[324983088,1714493442347,-500.0,0.0003178,2]
[324983090,1714493442363,-500.88029836,0.0003178,2]
[324983092,1714493442372,-500.0,0.0003178,2]
[324983095,1714493442383,-618.81,0.0003178,2]
[324983098,1714493442392,-500.0,0.0003178,2]
[324983101,1714493442400,-779.16,0.0003178,2]
[324983104,1714493442410,-500.0,0.0003178,2]
[324983106,1714493442419,-500.0,0.0003178,2]
[324983108,1714493442428,-500.0,0.0003178,2]
[324983110,1714493442437,-500.0,0.0003178,2]
[324983112,1714493442447,-500.0,0.0003178,2]
[324983114,1714493442456,-500.0,0.0003178,2]
[324983116,1714493442465,-500.0,0.0003178,2]
[324983118,1714493442475,-534.2,0.0003178,2]
[324983121,1714493442485,-500.0,0.0003178,2]
[324983123,1714493442494,-500.0,0.0003178,2]
[324983127,1714493442504,-500.0,0.0003178,2]
[324983130,1714493442514,-500.0,0.0003178,2]
[324983132,1714493442523,-500.0,0.0003178,2]
[324983135,1714493442532,-500.0,0.0003178,2]
[324983139,1714493442542,-500.0,0.0003178,2]
[324983141,1714493442551,-1530.46,0.0003178,2]
[324983145,1714493442560,-546.48,0.0003178,2]
[324983148,1714493442569,-500.0,0.0003178,2]
[324983152,1714493442578,-500.0,0.0003178,2]
[324983155,1714493442588,-500.0,0.0003178,2]
[324983158,1714493442597,-665.93,0.0003178,2]
[324983161,1714493442614,-557.07,0.0003178,2]
[324983163,1714493442623,-500.0,0.0003178,2]
[324983166,1714493442632,-647.15544297,0.0003178,2]
[324983169,1714493442641,-500.0,0.0003178,2]
[324983172,1714493442650,-825.88,0.0003178,2]
[324983174,1714493442659,-500.0,0.0003178,2]
[324983176,1714493442673,-500.0,0.0003178,2]
[324983178,1714493442681,-559.246242,0.0003178,2]
[324983180,1714493442690,-500.0,0.0003178,2]
[324983182,1714493442699,-500.76170349,0.0003178,2]
[324983184,1714493442709,-541.08982709,0.0003178,2]
[324983186,1714493442718,-500.0,0.0003178,2]
[324983188,1714493442727,-500.0,0.0003178,2]
[324983190,1714493442736,-548.87,0.0003178,2]
[324983191,1714493442745,-532.31,0.0003178,2]
[324983193,1714493442754,-500.0,0.0003178,2]
[324983196,1714493442764,-500.0,0.0003178,2]
[324983198,1714493442773,-861.51,0.0003178,2]
[324983199,1714493442783,-500.0,0.0003178,2]
[324983201,1714493442792,-500.0,0.0003178,2]
[324983203,1714493442801,-500.0,0.0003178,2]
[324983204,1714493442810,-186.24353765,0.0003178,2]
[324983206,1714493443063,-253.8,0.0003178,2]
[324983249,1714494348848,2807.5535999,9.999e-05,2]
[324983250,1714494442690,850.95196219,9.999e-05,2]
[324983251,1714494445149,-928.69749977,0.00014,2]
[324983252,1714494445169,-270.906493,0.00015132,2]
[324983253,1714494445195,-312.92952009,0.00015998,2]
[324983254,1714494445217,-2101.40475036,0.00015999,2]
[324983255,1714494445237,-59218.78804834,0.00015999,2]
[324983256,1714494445256,-9378.0153671,0.00016,2]
[324983257,1714494445276,-514.30635662,0.00016,2]
[324983258,1714494445296,-3000.0,0.00016264,2]
[324983259,1714494445316,-272.83575254,0.00016864,2]
[324983260,1714494445336,-166.666666,0.00016865,2]